bitfinex-derivatives/quotes_SOLF0:USTF0_20250819
["timestamp","ask_amount","ask_price","bid_price","bid_amount"]
[1755564147188,3.12,182.94,182.86,12.65821559]
[1755564147386,3.12,182.94,182.87,5.4655]
[1755564148184,3.12,182.94,182.86,12.65821559]
[1755564149377,143.24,182.97,182.89,8.385]
[1755564149588,143.24,182.97,182.89,2.92]
[1755564150691,3.12,182.96,182.86,9.73821559]
[1755564151085,3.12,182.96,182.88,5.4652]
[1755564151491,3.12,182.96,182.86,15.20411559]
[1755564151791,3.12,182.96,182.82,9.73821559]
[1755564151792,3.12,182.95,182.82,9.73821559]
[1755564151987,19.5,182.95,182.82,9.73821559]
[1755564152190,19.5,182.94,182.82,9.73821559]
[1755564152398,3.12,182.93,182.81,2.92]
[1755564153391,3.12,182.93,182.82,9.73821559]
[1755564153694,3.12,182.93,182.88,2.92]
[1755564154196,3.12,182.96,182.86,5.4659]
[1755564154697,3.12,182.96,182.87,2.92]
[1755564154998,3.12,182.96,182.86,9.73821559]
[1755564155501,3.12,182.96,182.86,15.20411559]
[1755564156199,3.12,182.96,182.86,9.73821559]
[1755564156801,3.12,182.96,182.88,5.4653]
[1755564157400,3.85524936,182.95,182.86,9.73821559]
[1755564157607,3.12,182.96,182.86,9.73821559]
[1755564157806,3.855247,182.95,182.86,15.20401559]
[1755564157993,3.12,182.96,182.83,2.92]
[1755564158299,3.12,182.94,182.83,2.92]
[1755564158497,3.12,182.92,182.83,2.92]
[1755564158688,143.02,182.91,182.83,2.92]
[1755564158887,143.02,182.91,182.83,8.3867]
[1755564159091,143.02,182.91,182.83,2.92]
[1755564160095,143.02,182.91,182.85,5.4662]
[1755564160300,143.02,182.91,182.83,2.92]
[1755564160789,143.02,182.91,182.84,5.4665]
[1755564161601,143.02,182.91,182.85,5.4662]
[1755564161801,143.02,182.91,182.83,2.92]
[1755564162096,3.12,182.9,182.81,5.4674]
[1755564162603,3.86113935,182.89,182.81,5.4674]
[1755564162892,3.12,182.9,182.81,5.4674]
[1755564163099,3.86130653,182.89,182.8,5.4677]
[1755564163304,3.12,182.9,182.8,5.4677]
[1755564163496,3.86329407,182.89,182.79,2.92]
[1755564163693,3.86329407,182.88,182.8,5.4677]
[1755564163895,3.12,182.9,182.79,2.92]
[1755564164093,3.86313348,182.89,182.79,2.92]
[1755564164293,3.86313348,182.88,182.79,2.92]
[1755564164505,142.94,182.93,182.83,2.92]
[1755564164705,3.86569229,182.92,182.83,2.92]
[1755564164901,142.94,182.93,182.85,5.4663]
[1755564165098,3.86547467,182.92,182.83,2.92]
[1755564165301,142.94,182.93,182.84,5.4665]
[1755564165600,3.12,182.91,182.79,2.92]
[1755564165807,3.86562829,182.92,182.79,2.92]
[1755564165808,3.12,182.89,182.8,5.4678]
[1755564165998,3.86562829,182.88,182.8,5.4678]
[1755564166199,3.12,182.89,182.8,5.4678]
[1755564166411,3.86589695,182.88,182.79,2.92]
[1755564166708,6.98589695,182.87,182.79,2.92]
[1755564166909,3.12,182.87,182.79,2.92]
[1755564167412,3.12,182.87,182.79,8.388]
[1755564167604,3.12,182.87,182.79,2.92]
[1755564167805,3.86787273,182.86,182.75,2.92]
[1755564168010,3.86787273,182.85,182.75,2.92]
[1755564168204,142.9,182.86,182.75,2.92]
[1755564168412,3.87152595,182.85,182.75,2.92]
[1755564168708,142.9,182.86,182.75,2.92]
[1755564168910,3.87152595,182.85,182.75,2.92]
[1755564169213,3.87555639,182.84,182.77,5.4687]
[1755564169412,3.12,182.87,182.76,2.92]
[1755564169614,3.87586385,182.86,182.76,2.92]
[1755564169815,3.87586385,182.85,182.79,5.4681]
[1755564170112,3.12,182.87,182.79,5.4681]
[1755564170306,3.87970366,182.86,182.79,5.4681]
[1755564170610,3.87970366,182.85,182.79,5.4681]
[1755564170910,3.12,182.87,182.79,5.4681]
[1755564171112,3.88003818,182.86,182.76,2.92]
[1755564171315,3.88003818,182.85,182.76,2.92]
[1755564171514,3.12,182.87,182.76,2.92]
[1755564171715,3.88273469,182.86,182.8,5.4678]
[1755564171914,3.88273469,182.85,182.8,8.3878]
[1755564172111,3.88603546,182.84,182.8,2.92]
[1755564172306,3.12,182.87,182.8,2.92]
[1755564172505,3.88603846,182.86,182.8,2.92]
[1755564172708,6.76603846,182.85,182.8,2.92]
[1755564172909,3.88603846,182.84,182.8,2.92]
[1755564173104,2.88,182.85,182.8,2.92]
[1755564173414,3.88734263,182.84,182.8,2.92]
[1755564173614,2.88,182.85,182.8,2.92]
[1755564173911,6.76734263,182.84,182.79,5.468]
[1755564174112,2.88,182.84,182.79,5.468]
[1755564174315,142.9,182.88,182.76,3.15]
[1755564174316,6.76833958,182.83,182.76,3.15]
[1755564174515,2.88,182.83,182.76,3.15]
[1755564174719,2.88,182.83,182.77,5.4685]
[1755564175018,2.88,182.83,182.76,3.15]
[1755564175421,2.88,182.83,182.77,5.4686]
[1755564175620,2.88,182.83,182.72,82.52565918]
[1755564175621,3.88882402,182.82,182.72,85.67565918]
[1755564175914,3.88884178,182.81,182.73,5.4697]
[1755564176117,6.76884178,182.8,182.72,3.15]
[1755564176316,3.88884178,182.79,182.72,3.15]
[1755564176522,2.88,182.8,182.72,3.15]
[1755564177221,3.88961109,182.79,182.74,5.4696]
[1755564177410,2.88,182.8,182.72,3.15]
[1755564177612,3.88961405,182.79,182.72,3.15]
[1755564177810,2.88,182.8,182.74,5.4696]
[1755564178016,3.88961109,182.79,182.7,9.73821559]
[1755564178218,2.88,182.84,182.71,3.15]
[1755564178408,3.88965624,182.83,182.71,3.15]
[1755564178613,3.88965624,182.82,182.71,3.15]
[1755564178923,3.88965624,182.81,182.71,3.15]
[1755564179120,3.88965624,182.8,182.71,3.15]
[1755564179324,2.88,182.84,182.71,3.15]
[1755564179525,3.88977878,182.83,182.76,5.4688]
[1755564179723,3.88977878,182.82,182.74,3.15]
[1755564179922,3.88977878,182.81,182.74,3.15]
[1755564180122,3.8891507,182.8,182.74,3.15]
[1755564180323,2.88,182.81,182.74,3.15]
[1755564180524,3.88933713,182.8,182.74,3.15]
[1755564180726,2.88,182.81,182.74,3.15]
[1755564181021,3.88053858,182.8,182.74,3.15]
[1755564181223,2.88,182.81,182.74,3.15]
[1755564181421,3.88065848,182.8,182.74,3.15]
[1755564181623,2.88,182.85,182.75,3.15]
[1755564181822,3.88105147,182.84,182.75,3.15]
[1755564182028,3.88105147,182.83,182.75,3.15]
[1755564182228,2.88,182.85,182.75,3.15]
[1755564182436,3.88072224,182.84,182.8,5.4676]
[1755564182726,2.88,182.87,182.75,3.15]
[1755564182924,3.88103297,182.86,182.75,3.15]
[1755564183124,3.88103297,182.85,182.75,3.15]
[1755564183429,2.88,182.87,182.75,3.15]
[1755564183625,3.88088416,182.86,182.78,5.4682]
[1755564183825,3.88088416,182.85,182.75,3.15]
[1755564184031,2.88,182.87,182.75,3.15]
[1755564184232,3.88067216,182.86,182.75,3.15]
[1755564184437,3.88067216,182.85,182.78,5.4682]
[1755564184730,2.88,182.87,182.78,5.4682]
[1755564184927,2.88,182.85,182.75,3.15]
[1755564185124,3.87962701,182.84,182.75,3.15]
[1755564185434,2.88,182.83,182.75,8.6193]
[1755564186523,2.88,182.83,182.76,5.469]
[1755564187422,2.88,182.83,182.77,5.4687]
[1755564188223,2.88,182.87,182.75,3.15]
[1755564188528,2.88,182.85,182.75,3.15]
[1755564188729,3.87940865,182.84,182.75,3.15]
[1755564189031,2.88,182.82,182.71,3.15]
[1755564189429,3.87810751,182.81,182.71,3.15]
[1755564189725,6.75812262,182.8,182.71,3.15]
[1755564189936,2.88,182.8,182.71,3.15]
[1755564190334,2.88,182.8,182.72,5.94339018]
[1755564190630,2.88,182.8,182.76,5.469]
[1755564190929,2.88,182.86,182.75,9.09339018]
[1755564191127,3.87628253,182.85,182.75,9.09339018]
[1755564191424,3.87628253,182.84,182.75,9.09339018]
[1755564191629,6.75627582,182.83,182.75,9.09339018]
[1755564191832,2.88,182.83,182.75,9.09339018]
[1755564192032,2.88,182.83,182.75,14.56259018]
[1755564192326,3.87613539,182.82,182.67,3.15]
[1755564192524,2.88,182.83,182.73,5.94339018]
[1755564192723,3.87608854,182.82,182.74,5.4695]
[1755564193030,2.88,182.83,182.76,5.94339018]
[1755564193230,2.88,182.83,182.77,5.4686]
[1755564193734,2.88,182.83,182.76,11.41229018]
[1755564195326,2.88,182.83,182.76,5.94339018]
[1755564195524,2.88,182.87,182.79,5.94339018]
[1755564195726,3.88156445,182.86,182.79,5.94339018]
[1755564195924,3.88156445,182.85,182.79,5.94339018]
[1755564196127,2.88,182.87,182.79,5.94339018]
[1755564196322,3.88294402,182.86,182.79,5.94339018]
[1755564196526,6.76294402,182.85,182.76,5.94339018]
[1755564196835,3.88294402,182.84,182.76,5.94339018]
[1755564197023,2.88,182.82,182.73,5.94339018]
[1755564197223,2.88,182.8,182.71,3.15]
[1755564197437,2.88,182.8,182.71,8.6204]
[1755564197737,2.88,182.8,182.71,3.15]
[1755564198924,3.88320396,182.79,182.7,5.94339018]
[1755564199123,6.76320396,182.78,182.7,5.94339018]
[1755564199325,2.88,182.76,182.67,9.09339018]
[1755564199831,2.88,182.76,182.67,3.15]
[1755564200034,2.88,182.76,182.64,9.09339018]
[1755564200235,2.88,182.74,182.64,9.09339018]
[1755564200436,2.88,182.74,182.64,14.56589018]
[1755564201338,2.88,182.74,182.64,5.94339018]
[1755564201546,2.88,182.74,182.67,5.94339018]
[1755564201940,2.88,182.74,182.67,11.41489018]
[1755564202639,3.88031025,182.73,182.65,9.09339018]
[1755564202943,2.88,182.74,182.65,9.09339018]
[1755564203145,3.88030737,182.73,182.65,9.09339018]
[1755564203349,2.88,182.74,182.65,9.09339018]
[1755564203553,3.87975916,182.73,182.65,9.09339018]
[1755564203738,2.88,182.74,182.65,9.09339018]
[1755564203938,3.07,182.72,182.65,5.94339018]
[1755564204247,3.07,182.72,182.58,2.92]
[1755564204539,3.07,182.7,182.59,5.94339018]
[1755564204845,3.07,182.68,182.59,5.94339018]
[1755564205041,3.07,182.66,182.56,5.94339018]
[1755564205342,3.07,182.64,182.55,84.6883772]
[1755564205544,3.07,182.64,182.57,2.92]
[1755564205936,3.07,182.64,182.58,5.4741]
[1755564206136,3.07,182.68,182.57,2.92]
[1755564206333,3.87246816,182.67,182.57,2.92]
[1755564206545,3.07,182.68,182.6,2.92]
[1755564207244,3.87022689,182.67,182.57,2.92]
[1755564207547,3.07,182.73,182.6,2.92]
[1755564207750,3.07,182.71,182.56,2.92]
[1755564208047,3.07,182.69,182.56,2.92]
[1755564208243,3.07,182.67,182.57,5.4746]
[1755564208449,3.86764581,182.66,182.56,2.92]
[1755564208642,6.93764581,182.65,182.56,2.92]
[1755564208942,3.86764581,182.64,182.56,2.92]
[1755564209244,3.07,182.65,182.56,2.92]
[1755564209642,3.07,182.69,182.6,5.4735]
[1755564209951,3.07,182.67,182.56,2.92]
[1755564210142,3.07,182.65,182.56,8.3947]
[1755564210340,3.07,182.69,182.56,2.92]
[1755564210536,3.86332431,182.68,182.56,2.92]
[1755564210740,3.86269307,182.67,182.58,5.4742]
[1755564210935,3.07,182.7,182.57,2.92]
[1755564211648,3.07,182.7,182.6,2.92]
[1755564211852,3.07,182.7,182.62,5.4729]
[1755564212043,3.07,182.7,182.6,2.92]
[1755564212436,3.8614127,182.69,182.59,9.76880469]
[1755564212648,3.07,182.7,182.6,2.92]
[1755564213044,3.07,182.68,182.6,2.92]
[1755564213739,3.07,182.74,182.6,2.92]
[1755564213940,3.07,182.72,182.61,5.4732]
[1755564214145,3.85980895,182.71,182.6,2.92]
[1755564214450,3.07,182.72,182.6,2.92]
[1755564215655,3.07,182.72,182.64,5.4725]
[1755564215844,3.07,182.72,182.6,2.92]
[1755564216243,3.07,182.7,182.6,2.92]
[1755564217848,3.07,182.74,182.6,2.92]
[1755564218047,3.85954457,182.73,182.6,2.92]
[1755564218247,3.07,182.74,182.6,2.92]
[1755564218442,3.86007209,182.73,182.62,5.4729]
[1755564218650,3.07,182.74,182.6,2.92]
[1755564218850,3.8600691,182.73,182.6,2.92]
[1755564219150,3.07,182.74,182.64,2.92]
[1755564219347,3.86079599,182.73,182.64,2.92]
[1755564219549,3.07,182.74,182.64,2.92]
[1755564219852,3.86079599,182.73,182.64,8.3924]
[1755564220055,3.07,182.74,182.64,8.3924]
[1755564220256,3.07,182.72,182.63,9.76880469]
[1755564220459,3.86212749,182.71,182.6,8.3937]
[1755564220660,6.93230555,182.7,182.6,2.92]
[1755564220852,3.07,182.7,182.6,2.92]
[1755564221151,3.07,182.7,182.63,5.4728]
[1755564221754,3.07,182.7,182.6,2.92]
[1755564222048,3.86196846,182.69,182.6,2.92]
[1755564222255,3.07,182.7,182.6,8.3934]
[1755564222453,3.07,182.7,182.6,2.92]
[1755564222850,3.86158854,182.69,182.6,2.92]
[1755564223048,16.41,182.73,182.6,2.92]
[1755564223252,20.27123705,182.72,182.6,2.92]
[1755564223450,3.07,182.7,182.57,5.4745]
[1755564223653,3.07,182.7,182.56,2.92]
[1755564223654,3.07,182.68,182.56,2.92]
[1755564224358,3.86071418,182.67,182.56,2.92]
[1755564224554,3.07,182.66,182.56,8.3947]
[1755564225261,3.07,182.66,182.56,2.92]
[1755564225657,3.07,182.66,182.58,5.4741]
[1755564225852,3.07,182.7,182.56,2.92]
[1755564226059,3.07,182.7,182.6,2.92]
[1755564226659,3.86031641,182.69,182.6,2.92]
[1755564226852,3.07,182.7,182.6,2.92]
[1755564227256,3.07,182.7,182.6,8.3936]
[1755564227669,3.07,182.7,182.6,2.92]
[1755564227868,3.07,182.7,182.61,5.4733]
[1755564228065,3.07,182.7,182.6,2.92]
[1755564228273,3.07,182.68,182.6,2.92]
[1755564228574,3.86083994,182.67,182.56,2.92]
[1755564228772,3.07,182.68,182.56,2.92]
[1755564228977,3.07,182.66,182.56,8.3948]
[1755564230468,3.86215201,182.65,182.56,2.92]
[1755564230670,3.07,182.66,182.56,2.92]
[1755564230868,3.07,182.64,182.53,5.4758]
[1755564231272,3.07,182.64,182.52,145.24]
[1755564231474,3.07,182.69,182.56,2.92]
[1755564231674,3.07,182.67,182.56,2.92]
[1755564231875,3.86253153,182.66,182.58,5.4743]
[1755564232075,3.07,182.67,182.56,2.92]
[1755564232677,16.41,182.74,182.61,5.4734]
[1755564232886,3.14,182.71,182.6,2.89]
[1755564233087,3.8655059,182.7,182.6,2.89]
[1755564233280,3.14,182.71,182.6,2.89]
[1755564233587,3.86559152,182.7,182.62,5.473]
[1755564233787,3.14,182.71,182.62,5.473]
[1755564234085,3.86559152,182.7,182.62,5.473]
[1755564234384,3.14,182.71,182.62,5.473]
[1755564234591,3.86664064,182.7,182.62,5.473]
[1755564234879,3.14,182.71,182.62,5.473]
[1755564235084,3.86664064,182.7,182.62,5.473]
[1755564235383,3.14,182.71,182.62,5.473]
[1755564235579,3.14,182.71,182.63,5.4727]
[1755564235785,3.14,182.71,182.6,2.89]
[1755564235973,3.14,182.71,182.64,5.4723]
[1755564236181,3.14,182.75,182.64,2.89]
[1755564236380,3.8691256,182.74,182.64,2.89]
[1755564236684,3.8691256,182.73,182.65,5.4721]
[1755564236879,3.8691256,182.72,182.65,5.4721]
[1755564237081,3.14,182.75,182.65,5.4721]
[1755564237384,3.14,182.73,182.64,2.89]
[1755564237686,3.8708136,182.72,182.64,2.89]
[1755564237888,3.14,182.73,182.66,5.4716]
[1755564238789,3.14,182.73,182.67,5.4716]
[1755564239193,3.87547281,182.72,182.67,8.3616]
[1755564239488,3.14,182.73,182.68,2.89]
[1755564239688,3.87547281,182.72,182.68,2.89]
[1755564239889,3.14,182.72,182.64,12.65880469]
[1755564240088,3.14,182.72,182.65,5.472]
[1755564240278,3.14,182.76,182.64,12.65880469]
[1755564240480,3.8777911,182.75,182.64,12.65880469]
[1755564240690,3.8777911,182.74,182.64,12.65880469]
[1755564240891,3.8777911,182.73,182.64,12.65880469]
[1755564241097,3.8777911,182.72,182.66,5.4717]
[1755564241390,3.8777911,182.71,182.67,2.89]
[1755564241593,3.14,182.76,182.64,12.65880469]
[1755564241794,3.14,182.74,182.64,2.89]
[1755564241993,3.14,182.72,182.64,2.89]
[1755564242192,3.87368048,182.71,182.64,2.89]
[1755564242394,3.87368048,182.7,182.64,2.89]
[1755564242596,3.87368048,182.69,182.64,2.89]
[1755564242783,3.14,182.72,182.6,12.65880469]
[1755564242984,3.87549619,182.71,182.62,5.4729]
[1755564243291,3.87549619,182.7,182.62,5.4729]
[1755564243490,3.87549619,182.69,182.62,5.4729]
[1755564243691,3.87549619,182.68,182.62,5.4729]
[1755564243891,3.87549619,182.67,182.63,2.89]
[1755564244093,3.14,182.72,182.63,2.89]
[1755564244295,8.14192578,182.71,182.63,2.89]
[1755564244596,3.87902519,182.7,182.63,2.89]
[1755564244792,3.87902519,182.69,182.63,2.89]
[1755564244993,9.16135762,182.76,182.64,9.76880469]
[1755564245299,10.92743468,182.75,182.65,2.89]
[1755564245500,8.14389315,182.74,182.67,5.4714]
[1755564245699,3.88003261,182.73,182.67,5.4714]
[1755564245891,3.88003261,182.72,182.68,5.4712]
[1755564246091,3.14,182.76,182.7,2.89]
[1755564246397,7.02063914,182.75,182.7,2.89]
[1755564246600,3.88063914,182.74,182.7,2.89]
[1755564246796,3.88063914,182.73,182.7,2.89]
[1755564246997,3.14,182.75,182.71,2.89]
[1755564247199,3.88008427,182.74,182.71,2.89]
[1755564247500,3.88008427,182.73,182.71,2.89]
[1755564247697,3.14,182.79,182.73,2.89]
[1755564247896,3.88023113,182.78,182.74,2.89]
[1755564248207,145.1,182.84,182.76,2.89]
[1755564248401,3.8780194,182.83,182.76,12.65880469]
[1755564248599,3.8780194,182.82,182.78,5.4681]
[1755564248904,141.96,182.84,182.77,2.89]
[1755564249095,9.03448958,182.92,182.84,5.4663]
[1755564249096,3.14,182.92,182.84,5.4663]
[1755564249303,8.14251798,182.91,182.84,5.4663]
[1755564249505,141.94,182.95,182.85,2.89]
[1755564249702,3.87333288,182.94,182.85,2.89]
[1755564249999,3.87333288,182.94,182.74,9.08379488]
[1755564250000,3.14,183.01,182.89,2.89]
[1755564250201,3.87425815,183.0,182.93,9.76880469]
[1755564250398,146.01117051,183.05,182.94,2.89]
[1755564250600,3.86299581,183.04,182.94,2.89]
[1755564250897,3.86299581,183.03,182.99,2.89]
[1755564251103,141.92,183.05,182.99,2.89]
[1755564251298,367.72,183.08,182.99,2.89]
[1755564251495,3.14,183.09,182.99,2.9311793]
[1755564251694,3.14,183.14,183.02,2.89]
[1755564251896,141.9,183.17,183.06,2.89]
[1755564252097,0.95063786,183.17,183.09,12.65880469]
[1755564252598,141.88,183.23,183.1,0.03584722]
[1755564252801,0.95031336,183.21,183.1,0.03584722]
[1755564252996,141.88,183.23,183.09,12.65880469]
[1755564253303,142.83026146,183.23,183.09,12.65880469]
[1755564253499,3.14,183.22,183.14,0.03608729]
[1755564254295,0.04038329,183.2,183.14,0.03608729]
[1755564255814,3.14,183.15,183.02,12.65880469]
[1755564255995,0.04038329,183.2,183.06,9.76880469]
[1755564256197,3.14,183.2,183.07,2.89]
[1755564256506,3.14,183.2,183.11,2.89]
[1755564256899,3.14,183.2,183.1,9.76880469]
[1755564257099,3.14,183.2,183.07,2.89]
[1755564260614,3.14,183.2,183.03,2.89]
[1755564261905,16.41,183.19,183.02,9.76880469]
[1755564262208,3.14,183.16,182.99,2.89]
[1755564264406,3.14,183.14,182.99,2.89]
[1755564264709,3.14,183.12,182.99,2.89]
[1755564268213,3.14,183.12,182.95,3.01]
[1755564269710,3.14,183.11,182.95,3.01]
[1755564269915,3.14,183.11,182.9,9.76880469]
[1755564269916,3.14,183.08,182.91,3.01]
[1755564270517,19.55,183.08,182.91,3.01]
[1755564270718,3.14,183.07,182.91,3.01]
[1755564271514,3.14,183.06,182.91,3.01]
[1755564271712,16.41,183.06,182.91,3.01]
[1755564272024,3.14,183.05,182.91,3.01]
[1755564272211,141.48,183.04,182.91,3.01]
[1755564272625,141.48,183.04,182.88,367.12]
[1755564272626,141.48,183.04,182.93,3.01]
[1755564275117,3.14,183.03,182.71,10.9408]
[1755564275318,3.14,183.03,182.88,3.01]
[1755564275815,3.14,183.03,182.91,3.01]
[1755564281927,3.14,183.03,182.86,9.76880469]
[1755564281928,3.14,183.03,182.88,3.01]
[1755564282426,3.79753436,183.02,182.88,3.01]
[1755564282633,3.14,183.02,182.88,3.01]
[1755564284228,3.80336008,183.01,182.88,3.01]
[1755564284535,3.14,182.99,182.88,3.01]
[1755564286228,3.80610817,182.98,182.88,3.01]
[1755564286525,3.14,182.97,182.88,3.01]
[1755564288437,3.81653672,182.96,182.88,3.01]
[1755564288642,3.14,182.97,182.88,3.01]
[1755564288831,3.81712052,182.96,182.88,3.01]
[1755564289147,3.14,182.97,182.88,3.01]
[1755564289341,3.81752574,182.96,182.88,3.01]
[1755564289537,3.81752574,182.95,182.88,3.01]
[1755564289738,3.14,182.97,182.88,3.01]
[1755564289939,3.14,183.01,182.88,3.01]
[1755564290131,3.14,183.01,182.77,367.14]
[1755564290132,367.22,183.02,182.9,9.76880469]
[1755564290333,6.96292491,183.01,182.91,3.01]
[1755564290639,3.82292491,183.0,182.91,3.01]
[1755564291836,367.22,183.02,182.91,3.01]
[1755564292036,3.83295979,183.01,182.94,3.01]
[1755564292237,3.83295979,183.0,182.94,3.01]
[1755564292541,3.13,182.98,182.9,12.71880469]
[1755564292730,3.83295979,182.97,182.9,2.95]
[1755564293337,3.83295979,182.96,182.9,2.95]
[1755564293544,3.83295979,182.95,182.9,2.95]
[1755564293730,3.83295979,182.94,182.9,2.95]
[1755564293933,3.13,182.98,182.9,2.95]
[1755564294143,6.60458485,182.97,182.9,2.95]
[1755564294342,3.84366989,182.96,182.9,2.95]
[1755564294542,6.97366989,182.95,182.9,2.95]
[1755564294840,6.02135762,183.0,182.86,2.95]
[1755564294841,6.97366989,182.94,182.86,2.95]
[1755564295035,3.84366989,182.93,182.86,2.95]
[1755564296245,141.32,182.97,182.86,9.76880469]
[1755564296446,3.84332932,182.96,182.88,5.4653]
[1755564296740,141.32,182.97,182.87,2.95]
[1755564296741,3.84332932,182.95,182.87,2.95]
[1755564297042,141.32,182.97,182.9,2.95]
[1755564297638,141.32,182.97,182.91,5.4643]
[1755564297838,141.32,182.97,182.9,2.95]
[1755564298040,367.22,183.02,182.9,2.95]
[1755564298240,6.6047642,183.01,182.9,2.95]
[1755564298440,3.84357861,183.0,182.9,2.95]
[1755564298737,3.84357861,182.99,182.9,2.95]
[1755564299243,3.13,182.98,182.9,2.95]
[1755564299448,3.84357861,182.97,182.9,2.95]
[1755564299643,3.84357861,182.97,182.9,8.4146]
[1755564300245,3.84357861,182.97,182.9,2.95]
[1755564300444,3.84357861,182.96,182.86,12.71880469]
[1755564300647,3.84357861,182.95,182.86,12.71880469]
[1755564300847,3.84357861,182.94,182.86,12.71880469]
[1755564301044,373.24135762,183.02,182.87,2.95]
[1755564301252,10.77489466,183.01,182.87,2.95]
[1755564301453,6.61668772,183.0,182.92,5.464]
[1755564301744,9.74798189,182.99,182.87,2.95]
[1755564301939,3.13,182.97,182.87,8.4157]
[1755564302138,3.85009192,182.96,182.87,8.4157]
[1755564302341,3.85009192,182.95,182.87,2.95]
[1755564302649,3.85009192,182.94,182.87,2.95]
[1755564302844,3.85009192,182.93,182.87,2.95]
[1755564303238,3.85009192,182.93,182.83,2.95]
[1755564303449,3.85009192,182.92,182.83,8.4168]
[1755564303651,3.85009192,182.91,182.83,2.95]
[1755564303847,3.85009192,182.9,182.84,5.4666]
[1755564304045,3.13,182.94,182.84,5.4666]
[1755564304046,3.85009192,182.89,182.84,5.4666]
[1755564304353,3.13,182.94,182.85,2.95]
[1755564304556,6.63151884,182.93,182.85,2.95]
[1755564304846,3.13,182.94,182.85,2.95]
[1755564304847,3.85897491,182.92,182.85,2.95]
[1755564305046,3.85897491,182.91,182.85,2.95]
[1755564305349,3.85897491,182.9,182.84,8.4166]
[1755564305544,3.85897491,182.89,182.82,9.76880469]
[1755564305750,3.13,182.94,182.83,2.95]
[1755564306050,3.86326688,182.93,182.83,2.95]
[1755564306237,3.86326688,182.92,182.88,2.95]
[1755564306441,3.13,182.94,182.84,2.95]
[1755564306442,3.86326688,182.91,182.84,2.95]
[1755564306737,3.13,182.94,182.84,2.95]
[1755564306941,3.86630205,182.93,182.84,2.95]
[1755564307142,141.24,182.95,182.84,2.95]
[1755564307338,141.24,182.95,182.89,5.4649]
[1755564307339,3.86699235,182.94,182.89,5.4649]
[1755564307655,3.86699235,182.93,182.86,2.95]
[1755564307851,141.24,182.95,182.88,9.76880469]
[1755564308045,141.24,182.95,182.89,2.95]
[1755564308352,517.59135762,183.02,182.89,2.95]
[1755564308554,10.8296104,183.01,182.92,5.464]
[1755564308755,10.8296104,183.0,182.92,5.464]
[1755564308947,10.8296104,182.99,182.92,5.464]
[1755564309254,3.86948221,182.98,182.92,5.464]
[1755564309556,3.86948221,182.97,182.94,2.95]
[1755564309752,3.86948221,182.96,182.95,2.95]
[1755564309947,3.86948221,183.01,182.95,2.95]
[1755564310150,13.96196505,183.0,182.95,2.95]
[1755564310448,3.86948221,182.99,182.97,2.95]
[1755564310650,3.86948221,182.98,182.97,2.95]
[1755564310846,6.99948221,183.01,182.93,2.95]
[1755564311046,3.86948221,183.0,182.93,2.95]